{"text_format":"3","workbook":"xlsx","n_sheets":3,"sheets":["Atribuições","Exibição mensal","Modo de exibição de semana"],"not_rendered":{"images":4,"defined_names":16},"read":"whole","date_system":"1900"}

{"sheet":"Atribuições","index":0,"n_rows":15,"n_cols":3,"rows_kept":15}
[null,"EXIBIÇÃO MENSAL","MODO DE EXIBIÇÃO DE SEMANA"]
[null,"ATRIBUIÇÕES"]
[null,"DESCRIÇÃO","DATA DE CONCLUSÃO"]
[null,"Tarefa 1",{"$f":"TODAY()","v":"2022-12-09"}]
[null,"Tarefa 2",{"$f":"TODAY()+15","v":"2022-12-24"}]
[null,"Tarefa 3",{"$f":"TODAY()+30","v":"2023-01-08"}]
[null,"Tarefa 4",{"$f":"TODAY()+45","v":"2023-01-23"}]
[null,"Tarefa 5",{"$f":"TODAY()+60","v":"2023-02-07"}]
[null,"Tarefa 6",{"$f":"TODAY()+75","v":"2023-02-22"}]
[null,"Tarefa 7",{"$f":"TODAY()+90","v":"2023-03-09"}]
[null,"Tarefa 8",{"$f":"TODAY()+105","v":"2023-03-24"}]
[null,"Tarefa 9",{"$f":"TODAY()+115","v":"2023-04-03"}]
[null,"Tarefa 10",{"$f":"TODAY()+130","v":"2023-04-18"}]
[null,"Tarefa 11",{"$f":"TODAY()+145","v":"2023-05-03"}]
[null,"Tarefa 12",{"$f":"TODAY()+160","v":"2023-05-18"}]

{"sheet":"Exibição mensal","index":1,"n_rows":17,"n_cols":8,"rows_kept":17}
[null,"ATRIBUIÇÕES","MODO DE EXIBIÇÃO DE SEMANA"]
[null,"Selecione o mês:","Insira o ano:"]
[null,{"$f":"TEXT(TODAY(),\"mmmm\")","v":"dezembro"},{"$f":"YEAR(TODAY())","v":2022}]
[null,"EXIBIÇÃO MENSAL"]
[null,"DOMINGO","SEGUNDA-FEIRA","TERÇA-FEIRA","QUARTA-FEIRA","QUINTA-FEIRA","SEXTA-FEIRA","SÁBADO"]
[null,{"$f":"IF(WEEKDAY(DATEVALUE(\" 1 \"&MêsMês&MêsAno))=COLUMN(A$2),1,IF(LEN(A6)>0,A6+1,\"\"))","v":""},"","","",1,2,3]
[null,{"$f":"IF(LEN(B6)=0,\"\",IF(COUNTIF(Atribuições[DATA DE CONCLUSÃO],DATE(MêsAno,MêsMêsNúmero,B6))>0,\"Tarefa pendente!\",\"\"))","v":""},{"$f":"IF(LEN(C6)=0,\"\",IF(COUNTIF(Atribuições[DATA DE CONCLUSÃO],DATE(MêsAno,MêsMêsNúmero,C6))>0,\"Tarefa pendente!\",\"\"))","v":""},{"$f":"IF(LEN(D6)=0,\"\",IF(COUNTIF(Atribuições[DATA DE CONCLUSÃO],DATE(MêsAno,MêsMêsNúmero,D6))>0,\"Tarefa pendente!\",\"\"))","v":""},{"$f":"IF(LEN(E6)=0,\"\",IF(COUNTIF(Atribuições[DATA DE CONCLUSÃO],DATE(MêsAno,MêsMêsNúmero,E6))>0,\"Tarefa pendente!\",\"\"))","v":""},{"$f":"IF(LEN(F6)=0,\"\",IF(COUNTIF(Atribuições[DATA DE CONCLUSÃO],DATE(MêsAno,MêsMêsNúmero,F6))>0,\"Tarefa pendente!\",\"\"))","v":""},{"$f":"IF(LEN(G6)=0,\"\",IF(COUNTIF(Atribuições[DATA DE CONCLUSÃO],DATE(MêsAno,MêsMêsNúmero,G6))>0,\"Tarefa pendente!\",\"\"))","v":""},{"$f":"IF(LEN(H6)=0,\"\",IF(COUNTIF(Atribuições[DATA DE CONCLUSÃO],DATE(MêsAno,MêsMêsNúmero,H6))>0,\"Tarefa pendente!\",\"\"))","v":""}]
[null,{"$f":"IF(LEN(H6)>0,IF(H6=DAY(DATE(MêsAno,MêsMêsNúmero+1,0)),\"\",H6+1),\"\")","v":4},{"$f":"IF(LEN(B8)>0,IF(B8=DAY(DATE(MêsAno,MêsMêsNúmero+1,0)),\"\",B8+1),\"\")","v":5},6,7,8,9,10]
[null,{"$f":"IF(LEN(B8)=0,\"\",IF(COUNTIF(Atribuições[DATA DE CONCLUSÃO],DATE(MêsAno,MêsMêsNúmero,B8))>0,\"Tarefa pendente!\",\"\"))","v":""},{"$f":"IF(LEN(C8)=0,\"\",IF(COUNTIF(Atribuições[DATA DE CONCLUSÃO],DATE(MêsAno,MêsMêsNúmero,C8))>0,\"Tarefa pendente!\",\"\"))","v":""},{"$f":"IF(LEN(D8)=0,\"\",IF(COUNTIF(Atribuições[DATA DE CONCLUSÃO],DATE(MêsAno,MêsMêsNúmero,D8))>0,\"Tarefa pendente!\",\"\"))","v":""},{"$f":"IF(LEN(E8)=0,\"\",IF(COUNTIF(Atribuições[DATA DE CONCLUSÃO],DATE(MêsAno,MêsMêsNúmero,E8))>0,\"Tarefa pendente!\",\"\"))","v":""},{"$f":"IF(LEN(F8)=0,\"\",IF(COUNTIF(Atribuições[DATA DE CONCLUSÃO],DATE(MêsAno,MêsMêsNúmero,F8))>0,\"Tarefa pendente!\",\"\"))","v":""},{"$f":"IF(LEN(G8)=0,\"\",IF(COUNTIF(Atribuições[DATA DE CONCLUSÃO],DATE(MêsAno,MêsMêsNúmero,G8))>0,\"Tarefa pendente!\",\"\"))","v":"Tarefa pendente!"},{"$f":"IF(LEN(H8)=0,\"\",IF(COUNTIF(Atribuições[DATA DE CONCLUSÃO],DATE(MêsAno,MêsMêsNúmero,H8))>0,\"Tarefa pendente!\",\"\"))","v":""}]
[null,{"$f":"IF(LEN(H8)>0,IF(H8=DAY(DATE(MêsAno,MêsMêsNúmero+1,0)),\"\",H8+1),\"\")","v":11},{"$f":"IF(LEN(B10)>0,IF(B10=DAY(DATE(MêsAno,MêsMêsNúmero+1,0)),\"\",B10+1),\"\")","v":12},13,14,15,16,17]
[null,{"$f":"IF(LEN(B10)=0,\"\",IF(COUNTIF(Atribuições[DATA DE CONCLUSÃO],DATE(MêsAno,MêsMêsNúmero,B10))>0,\"Tarefa pendente!\",\"\"))","v":""},{"$f":"IF(LEN(C10)=0,\"\",IF(COUNTIF(Atribuições[DATA DE CONCLUSÃO],DATE(MêsAno,MêsMêsNúmero,C10))>0,\"Tarefa pendente!\",\"\"))","v":""},{"$f":"IF(LEN(D10)=0,\"\",IF(COUNTIF(Atribuições[DATA DE CONCLUSÃO],DATE(MêsAno,MêsMêsNúmero,D10))>0,\"Tarefa pendente!\",\"\"))","v":""},{"$f":"IF(LEN(E10)=0,\"\",IF(COUNTIF(Atribuições[DATA DE CONCLUSÃO],DATE(MêsAno,MêsMêsNúmero,E10))>0,\"Tarefa pendente!\",\"\"))","v":""},{"$f":"IF(LEN(F10)=0,\"\",IF(COUNTIF(Atribuições[DATA DE CONCLUSÃO],DATE(MêsAno,MêsMêsNúmero,F10))>0,\"Tarefa pendente!\",\"\"))","v":""},{"$f":"IF(LEN(G10)=0,\"\",IF(COUNTIF(Atribuições[DATA DE CONCLUSÃO],DATE(MêsAno,MêsMêsNúmero,G10))>0,\"Tarefa pendente!\",\"\"))","v":""},{"$f":"IF(LEN(H10)=0,\"\",IF(COUNTIF(Atribuições[DATA DE CONCLUSÃO],DATE(MêsAno,MêsMêsNúmero,H10))>0,\"Tarefa pendente!\",\"\"))","v":""}]
[null,{"$f":"IF(LEN(H10)>0,IF(H10=DAY(DATE(MêsAno,MêsMêsNúmero+1,0)),\"\",H10+1),\"\")","v":18},{"$f":"IF(LEN(B12)>0,IF(B12=DAY(DATE(MêsAno,MêsMêsNúmero+1,0)),\"\",B12+1),\"\")","v":19},20,21,22,23,24]
[null,{"$f":"IF(LEN(B12)=0,\"\",IF(COUNTIF(Atribuições[DATA DE CONCLUSÃO],DATE(MêsAno,MêsMêsNúmero,B12))>0,\"Tarefa pendente!\",\"\"))","v":""},{"$f":"IF(LEN(C12)=0,\"\",IF(COUNTIF(Atribuições[DATA DE CONCLUSÃO],DATE(MêsAno,MêsMêsNúmero,C12))>0,\"Tarefa pendente!\",\"\"))","v":""},{"$f":"IF(LEN(D12)=0,\"\",IF(COUNTIF(Atribuições[DATA DE CONCLUSÃO],DATE(MêsAno,MêsMêsNúmero,D12))>0,\"Tarefa pendente!\",\"\"))","v":""},{"$f":"IF(LEN(E12)=0,\"\",IF(COUNTIF(Atribuições[DATA DE CONCLUSÃO],DATE(MêsAno,MêsMêsNúmero,E12))>0,\"Tarefa pendente!\",\"\"))","v":""},{"$f":"IF(LEN(F12)=0,\"\",IF(COUNTIF(Atribuições[DATA DE CONCLUSÃO],DATE(MêsAno,MêsMêsNúmero,F12))>0,\"Tarefa pendente!\",\"\"))","v":""},{"$f":"IF(LEN(G12)=0,\"\",IF(COUNTIF(Atribuições[DATA DE CONCLUSÃO],DATE(MêsAno,MêsMêsNúmero,G12))>0,\"Tarefa pendente!\",\"\"))","v":""},{"$f":"IF(LEN(H12)=0,\"\",IF(COUNTIF(Atribuições[DATA DE CONCLUSÃO],DATE(MêsAno,MêsMêsNúmero,H12))>0,\"Tarefa pendente!\",\"\"))","v":"Tarefa pendente!"}]
[null,{"$f":"IF(LEN(H12)>0,IF(H12=DAY(DATE(MêsAno,MêsMêsNúmero+1,0)),\"\",H12+1),\"\")","v":25},{"$f":"IF(LEN(B14)>0,IF(B14=DAY(DATE(MêsAno,MêsMêsNúmero+1,0)),\"\",B14+1),\"\")","v":26},27,28,29,30,31]
[null,{"$f":"IF(LEN(B14)=0,\"\",IF(COUNTIF(Atribuições[DATA DE CONCLUSÃO],DATE(MêsAno,MêsMêsNúmero,B14))>0,\"Tarefa pendente!\",\"\"))","v":""},{"$f":"IF(LEN(C14)=0,\"\",IF(COUNTIF(Atribuições[DATA DE CONCLUSÃO],DATE(MêsAno,MêsMêsNúmero,C14))>0,\"Tarefa pendente!\",\"\"))","v":""},{"$f":"IF(LEN(D14)=0,\"\",IF(COUNTIF(Atribuições[DATA DE CONCLUSÃO],DATE(MêsAno,MêsMêsNúmero,D14))>0,\"Tarefa pendente!\",\"\"))","v":""},{"$f":"IF(LEN(E14)=0,\"\",IF(COUNTIF(Atribuições[DATA DE CONCLUSÃO],DATE(MêsAno,MêsMêsNúmero,E14))>0,\"Tarefa pendente!\",\"\"))","v":""},{"$f":"IF(LEN(F14)=0,\"\",IF(COUNTIF(Atribuições[DATA DE CONCLUSÃO],DATE(MêsAno,MêsMêsNúmero,F14))>0,\"Tarefa pendente!\",\"\"))","v":""},{"$f":"IF(LEN(G14)=0,\"\",IF(COUNTIF(Atribuições[DATA DE CONCLUSÃO],DATE(MêsAno,MêsMêsNúmero,G14))>0,\"Tarefa pendente!\",\"\"))","v":""},{"$f":"IF(LEN(H14)=0,\"\",IF(COUNTIF(Atribuições[DATA DE CONCLUSÃO],DATE(MêsAno,MêsMêsNúmero,H14))>0,\"Tarefa pendente!\",\"\"))","v":""}]
[null,{"$f":"IF(LEN(H14)>0,IF(H14=DAY(DATE(MêsAno,MêsMêsNúmero+1,0)),\"\",H14+1),\"\")","v":""},{"$f":"IF(LEN(B16)>0,IF(B16=DAY(DATE(MêsAno,MêsMêsNúmero+1,0)),\"\",B16+1),\"\")","v":""},"","","","",""]
[null,{"$f":"IF(LEN(B16)=0,\"\",IF(COUNTIF(Atribuições[DATA DE CONCLUSÃO],DATE(MêsAno,MêsMêsNúmero,B16))>0,\"Tarefa pendente!\",\"\"))","v":""},{"$f":"IF(LEN(C16)=0,\"\",IF(COUNTIF(Atribuições[DATA DE CONCLUSÃO],DATE(MêsAno,MêsMêsNúmero,C16))>0,\"Tarefa pendente!\",\"\"))","v":""},{"$f":"IF(LEN(D16)=0,\"\",IF(COUNTIF(Atribuições[DATA DE CONCLUSÃO],DATE(MêsAno,MêsMêsNúmero,D16))>0,\"Tarefa pendente!\",\"\"))","v":""},{"$f":"IF(LEN(E16)=0,\"\",IF(COUNTIF(Atribuições[DATA DE CONCLUSÃO],DATE(MêsAno,MêsMêsNúmero,E16))>0,\"Tarefa pendente!\",\"\"))","v":""},{"$f":"IF(LEN(F16)=0,\"\",IF(COUNTIF(Atribuições[DATA DE CONCLUSÃO],DATE(MêsAno,MêsMêsNúmero,F16))>0,\"Tarefa pendente!\",\"\"))","v":""},{"$f":"IF(LEN(G16)=0,\"\",IF(COUNTIF(Atribuições[DATA DE CONCLUSÃO],DATE(MêsAno,MêsMêsNúmero,G16))>0,\"Tarefa pendente!\",\"\"))","v":""},{"$f":"IF(LEN(H16)=0,\"\",IF(COUNTIF(Atribuições[DATA DE CONCLUSÃO],DATE(MêsAno,MêsMêsNúmero,H16))>0,\"Tarefa pendente!\",\"\"))","v":""}]

{"sheet":"Modo de exibição de semana","index":2,"n_rows":17,"n_cols":8,"rows_kept":17}
[null,"ATRIBUIÇÕES","EXIBIÇÃO MENSAL"]
[null,"Selecione o mês:","Inserir ano:","Selecione o número da semana:"]
[null,"setembro",{"$f":"YEAR(TODAY())","v":2022},"Semana 1"]
[null," MODO DE EXIBIÇÃO DE SEMANA"]
[null,{"$f":"IF(WEEKDAY(DATEVALUE(\"1 \"&SemanaMês&SemanaAno))=COLUMN(A$2),1,IF(LEN(A5)>0,A5+1,\"\"))","v":""},"","","",1,2,3]
[null,{"$f":"IF(LEN(H5)>0,IF(H5=ÚltimoDiaDoMês_Semana,\"\",H5+1),\"\")","v":4},{"$f":"IF(LEN(B6)>0,IF(B6=ÚltimoDiaDoMês_Semana,\"\",B6+1),\"\")","v":5},6,7,8,9,10]
[null,{"$f":"IF(LEN(H6)>0,IF(H6=ÚltimoDiaDoMês_Semana,\"\",H6+1),\"\")","v":11},12,13,14,15,16,17]
[null,{"$f":"IF(LEN(H7)>0,IF(H7=ÚltimoDiaDoMês_Semana,\"\",H7+1),\"\")","v":18},19,20,21,22,23,24]
[null,{"$f":"IF(LEN(H8)>0,IF(H8=ÚltimoDiaDoMês_Semana,\"\",H8+1),\"\")","v":25},26,27,28,29,30,""]
[null,{"$f":"IF(LEN(H9)>0,IF(H9=ÚltimoDiaDoMês_Semana,\"\",H9+1),\"\")","v":""},"","","","","",""]
[null,"DOMINGO","SEGUNDA-FEIRA","TERÇA-FEIRA","QUARTA-FEIRA","QUINTA-FEIRA","SEXTA-FEIRA","SÁBADO"]
[null,{"$f":"IF(B14=\"\",IF(AND(ISNUMBER(A12),A12<ÚltimoDiaDoMês_Semana),A12+1,\"\"),IF(B14<=7,\"\",INDEX(SemanaExibiçãoDeMês,SemanaSemana,COLUMN(A$2))-7))","v":""},"","","","","",""]
[null,{"$f":"IF(LEN(B12)=0,\"\",IF(COUNTIF(Atribuições[DATA DE CONCLUSÃO],DATE(SemanaAno,SemanaMêsNúmero,B12))>0,\"Tarefa pendente!\",\"\"))","v":""},{"$f":"IF(LEN(C12)=0,\"\",IF(COUNTIF(Atribuições[DATA DE CONCLUSÃO],DATE(SemanaAno,SemanaMêsNúmero,C12))>0,\"Tarefa pendente!\",\"\"))","v":""},{"$f":"IF(LEN(D12)=0,\"\",IF(COUNTIF(Atribuições[DATA DE CONCLUSÃO],DATE(SemanaAno,SemanaMêsNúmero,D12))>0,\"Tarefa pendente!\",\"\"))","v":""},{"$f":"IF(LEN(E12)=0,\"\",IF(COUNTIF(Atribuições[DATA DE CONCLUSÃO],DATE(SemanaAno,SemanaMêsNúmero,E12))>0,\"Tarefa pendente!\",\"\"))","v":""},{"$f":"IF(LEN(F12)=0,\"\",IF(COUNTIF(Atribuições[DATA DE CONCLUSÃO],DATE(SemanaAno,SemanaMêsNúmero,F12))>0,\"Tarefa pendente!\",\"\"))","v":""},{"$f":"IF(LEN(G12)=0,\"\",IF(COUNTIF(Atribuições[DATA DE CONCLUSÃO],DATE(SemanaAno,SemanaMêsNúmero,G12))>0,\"Tarefa pendente!\",\"\"))","v":""},{"$f":"IF(LEN(H12)=0,\"\",IF(COUNTIF(Atribuições[DATA DE CONCLUSÃO],DATE(SemanaAno,SemanaMêsNúmero,H12))>0,\"Tarefa pendente!\",\"\"))","v":""}]
[null,{"$f":"INDEX(SemanaExibiçãoDeMês,SemanaSemana,COLUMN(A$2))","v":""},{"$f":"INDEX(SemanaExibiçãoDeMês,SemanaSemana,COLUMN(B$2))","v":""},{"$f":"INDEX(SemanaExibiçãoDeMês,SemanaSemana,COLUMN(C$2))","v":""},{"$f":"INDEX(SemanaExibiçãoDeMês,SemanaSemana,COLUMN(D$2))","v":""},{"$f":"INDEX(SemanaExibiçãoDeMês,SemanaSemana,COLUMN(E$2))","v":1},{"$f":"INDEX(SemanaExibiçãoDeMês,SemanaSemana,COLUMN(F$2))","v":2},{"$f":"INDEX(SemanaExibiçãoDeMês,SemanaSemana,COLUMN(G$2))","v":3}]
[null,{"$f":"IF(LEN(B14)=0,\"\",IF(COUNTIF(Atribuições[DATA DE CONCLUSÃO],DATE(SemanaAno,SemanaMêsNúmero,B14))>0,\"Tarefa pendente!\",\"\"))","v":""},{"$f":"IF(LEN(C14)=0,\"\",IF(COUNTIF(Atribuições[DATA DE CONCLUSÃO],DATE(SemanaAno,SemanaMêsNúmero,C14))>0,\"Tarefa pendente!\",\"\"))","v":""},{"$f":"IF(LEN(D14)=0,\"\",IF(COUNTIF(Atribuições[DATA DE CONCLUSÃO],DATE(SemanaAno,SemanaMêsNúmero,D14))>0,\"Tarefa pendente!\",\"\"))","v":""},{"$f":"IF(LEN(E14)=0,\"\",IF(COUNTIF(Atribuições[DATA DE CONCLUSÃO],DATE(SemanaAno,SemanaMêsNúmero,E14))>0,\"Tarefa pendente!\",\"\"))","v":""},{"$f":"IF(LEN(F14)=0,\"\",IF(COUNTIF(Atribuições[DATA DE CONCLUSÃO],DATE(SemanaAno,SemanaMêsNúmero,F14))>0,\"Tarefa pendente!\",\"\"))","v":""},{"$f":"IF(LEN(G14)=0,\"\",IF(COUNTIF(Atribuições[DATA DE CONCLUSÃO],DATE(SemanaAno,SemanaMêsNúmero,G14))>0,\"Tarefa pendente!\",\"\"))","v":""},{"$f":"IF(LEN(H14)=0,\"\",IF(COUNTIF(Atribuições[DATA DE CONCLUSÃO],DATE(SemanaAno,SemanaMêsNúmero,H14))>0,\"Tarefa pendente!\",\"\"))","v":""}]
[null,{"$f":"IFERROR(IF(B14=\"\",IF(AND(ISNUMBER(A16),A16<ÚltimoDiaDoMês_Semana),A16+1,$H$14+COLUMN(A$2)),IF(B14+7>ÚltimoDiaDoMês_Semana,\"\",INDEX(SemanaExibiçãoDeMês,SemanaSemana,COLUMN(A$2))+7)),\"\")","v":4},{"$f":"IFERROR(IF(C14=\"\",IF(AND(ISNUMBER(B16),B16<ÚltimoDiaDoMês_Semana),B16+1,$H$14+COLUMN(B$2)),IF(C14+7>ÚltimoDiaDoMês_Semana,\"\",INDEX(SemanaExibiçãoDeMês,SemanaSemana,COLUMN(B$2))+7)),\"\")","v":5},{"$f":"IFERROR(IF(D14=\"\",IF(AND(ISNUMBER(C16),C16<ÚltimoDiaDoMês_Semana),C16+1,$H$14+COLUMN(C$2)),IF(D14+7>ÚltimoDiaDoMês_Semana,\"\",INDEX(SemanaExibiçãoDeMês,SemanaSemana,COLUMN(C$2))+7)),\"\")","v":6},{"$f":"IFERROR(IF(E14=\"\",IF(AND(ISNUMBER(D16),D16<ÚltimoDiaDoMês_Semana),D16+1,$H$14+COLUMN(D$2)),IF(E14+7>ÚltimoDiaDoMês_Semana,\"\",INDEX(SemanaExibiçãoDeMês,SemanaSemana,COLUMN(D$2))+7)),\"\")","v":7},{"$f":"IFERROR(IF(F14=\"\",IF(AND(ISNUMBER(E16),E16<ÚltimoDiaDoMês_Semana),E16+1,$H$14+COLUMN(E$2)),IF(F14+7>ÚltimoDiaDoMês_Semana,\"\",INDEX(SemanaExibiçãoDeMês,SemanaSemana,COLUMN(E$2))+7)),\"\")","v":8},{"$f":"IFERROR(IF(G14=\"\",IF(AND(ISNUMBER(F16),F16<ÚltimoDiaDoMês_Semana),F16+1,$H$14+COLUMN(F$2)),IF(G14+7>ÚltimoDiaDoMês_Semana,\"\",INDEX(SemanaExibiçãoDeMês,SemanaSemana,COLUMN(F$2))+7)),\"\")","v":9},{"$f":"IFERROR(IF(H14=\"\",IF(AND(ISNUMBER(G16),G16<ÚltimoDiaDoMês_Semana),G16+1,$H$14+COLUMN(G$2)),IF(H14+7>ÚltimoDiaDoMês_Semana,\"\",INDEX(SemanaExibiçãoDeMês,SemanaSemana,COLUMN(G$2))+7)),\"\")","v":10}]
[null,{"$f":"IF(LEN(B16)=0,\"\",IF(COUNTIF(Atribuições[DATA DE CONCLUSÃO],DATE(SemanaAno,SemanaMêsNúmero,B16))>0,\"Tarefa pendente!\",\"\"))","v":""},{"$f":"IF(LEN(C16)=0,\"\",IF(COUNTIF(Atribuições[DATA DE CONCLUSÃO],DATE(SemanaAno,SemanaMêsNúmero,C16))>0,\"Tarefa pendente!\",\"\"))","v":""},{"$f":"IF(LEN(D16)=0,\"\",IF(COUNTIF(Atribuições[DATA DE CONCLUSÃO],DATE(SemanaAno,SemanaMêsNúmero,D16))>0,\"Tarefa pendente!\",\"\"))","v":""},{"$f":"IF(LEN(E16)=0,\"\",IF(COUNTIF(Atribuições[DATA DE CONCLUSÃO],DATE(SemanaAno,SemanaMêsNúmero,E16))>0,\"Tarefa pendente!\",\"\"))","v":""},{"$f":"IF(LEN(F16)=0,\"\",IF(COUNTIF(Atribuições[DATA DE CONCLUSÃO],DATE(SemanaAno,SemanaMêsNúmero,F16))>0,\"Tarefa pendente!\",\"\"))","v":""},{"$f":"IF(LEN(G16)=0,\"\",IF(COUNTIF(Atribuições[DATA DE CONCLUSÃO],DATE(SemanaAno,SemanaMêsNúmero,G16))>0,\"Tarefa pendente!\",\"\"))","v":""},{"$f":"IF(LEN(H16)=0,\"\",IF(COUNTIF(Atribuições[DATA DE CONCLUSÃO],DATE(SemanaAno,SemanaMêsNúmero,H16))>0,\"Tarefa pendente!\",\"\"))","v":""}]